Cogmind - Beta 17 @@@ ROGUE MODE // 2026.07.12 @ 19:19:26 Player: shapeshifter Result: Destroyed by Executioner with Helical Railgun Performance ------------- Evolutions (8) 4000 Regions Visited (19) 3800 Robots Destroyed (284) 1420 Value Destroyed (15125) 15125 Prototype IDs (153) 3060 Alien Tech Used (6) 1200 Bonus (30159) 30159 TOTAL SCORE: 58764 Bonus ------- Triggered High Security 500 High Alert Combat Kills 4846 Follower Combat Kills 1862 Prayed to X0-1V1 5000 Major X0-1V1 Interference 14200 Registered with UFD 300 Met Optimus in HQ 500 Met Zhirov 300 Met Warlord at Base 500 MAIN.C Attacked Warlord 500 Warlord Defense Kills 240 Scanned by Researcher 500 Met Optimus at Protoforge 1000 Friendly Fire -89 Cogmind --------- Core Integrity 0/1610 Matter 221/300 Energy 98/100 System Corruption 15% Temperature Cool (0) Movement Core (50) Location -2/Protoforge Parts ------- > --- POWER (4) -------- (None) > --- PROPULSION (7) --- (None) > --- UTILITY (9) ------ 2N-1CE's Frost Array Experimental Core Analyzer Experimental Armor Integrity Analyzer Advanced Hacking Suite > --- WEAPON (3) ------- (None) > --- INVENTORY (5) ---- Biometal Leg Core Cannon Perforator Peak State ------------ > --- POWER ------------ Particle Reactor Cooled Antimatter Reactor Light Quantum Reactor Improved Quantum Reactor > --- PROPULSION ------- Biometal Leg Centrium Leg Centrium Leg Centrium Leg Heavy Shield Leg High-density Centrium Leg > --- UTILITY ---------- 2N-1CE's Frost Array Large Storage Unit Experimental Optical Array Experimental Core Analyzer Experimental Armor Integrity Analyzer Advanced Phase Shifter Experimental Hardlight Generator Advanced Hacking Suite A0-MCA's Component Scanner > --- WEAPON ----------- Core Cannon Multirail > --- INVENTORY -------- Biometal Leg Experimental Core Analyzer Hacking Suite Dimensional Node Initializer Supercharged TR Vortex Cannon YOLO Cannon Perforator Datajack Sigix Broadsword [Rating: 226] Favorites ----------- Power Light Ion Engine Engine Light Ion Engine Power Core Neutrino Core Reactor Light Quantum Reactor Propulsion Light Treads Treads Light Treads Leg Medium Armored Exoskeleton Wheel Armored Wheel Hover Unit Cooled Antigrav System Flight Unit Flightbrick Utility X0-1V1's Piety Tracker Device X0-1V1's Piety Tracker Storage Large Storage Unit Processor A0-MCA's Component Scanner Hackware Advanced Hacking Suite Protection Hardened Light Armor Plating Weapon Light Assault Rifle Energy Gun Spread Laser Energy Cannon HERF Cannon Ballistic Gun Light Assault Rifle Ballistic Cannon Compact Mass Driver Launcher Missile Launcher Special Weapon Multitool Impact Weapon Mace Slashing Weapon Sigix Broadsword Special Melee Weapon Improved Datajack Build | -11 -10 -10 -10 -7 -5 -5 -5 -5 -4 -4 -4 -4 -4 -3 -3 -3 -2 -2 -2 ------- Run | Yrd Mat Min Sub Scr Fac Upp Upp War Pro Fac Upp Upp Zhi Pro Res Qua Res Tes Frg Slots Evolved 16 | . . . . . 10 . . . . 2 . . . . 2 . 2 . . Power 2 | . . . . . . . . . . . . . . . 1 . 1 . . Propulsion 6 | . . . . . 6 . . . . . . . . . . . . . . Utility 7 | . . . . . 4 . . . . 2 . . . . 1 . . . . Weapon 1 | . . . . . . . . . . . . . . . . . 1 . . Parts Attached 228 | 7 15 3 26 10 9 7 5 17 2 13 18 2 7 2 15 13 12 25 20 Power 40 | 1 4 1 6 2 1 1 3 1 . 1 4 . . . 3 1 4 5 2 Engine 14 | 1 4 1 6 1 . . 1 . . . . . . . . . . . . Core 8 | . . . . 1 1 1 2 . . 1 1 . . . . . . . 1 Reactor 18 | . . . . . . . . 1 . . 3 . . . 3 1 4 5 1 Propulsion 52 | 2 3 1 7 . 2 1 . 6 1 2 6 . 3 . . 1 . 10 7 Treads 9 | 2 3 1 2 . . 1 . . . . . . . . . . . . . Leg 30 | . . . . . 1 . . 4 1 2 5 . 1 . . 1 . 10 5 Wheel 8 | . . . 5 . . . . . . . 1 . . . . . . . 2 Hover 4 | . . . . . . . . 2 . . . . 2 . . . . . . Flight 1 | . . . . . 1 . . . . . . . . . . . . . . Utility 88 | 2 5 1 5 5 5 3 2 4 . 5 6 1 4 1 10 8 6 7 8 Device 49 | 1 2 1 2 5 2 2 1 3 . 2 5 1 2 1 6 6 3 3 1 Storage 10 | 1 2 . 1 . 1 . . . . . 1 . . . 1 . 1 1 1 Processor 11 | . . . . . 1 1 . 1 . 1 . . . . . 1 1 2 3 Hackware 9 | . . . . . 1 . . . . 1 . . 1 . 2 1 1 1 1 Protection 9 | . 1 . 2 . . . 1 . . 1 . . 1 . 1 . . . 2 Artifact . | . . . . . . . . . . . . . . . . . . . . Weapon 48 | 2 3 . 8 3 1 2 . 6 1 5 2 1 . 1 2 3 2 3 3 Energy Gun 12 | . 3 . 2 . . . . 4 . 1 . . . 1 . 1 . . . Energy Cannon 10 | . . . 1 1 1 . . 1 . 2 . 1 . . . . 1 1 1 Ballistic Gun 15 | 2 . . 4 . . 1 . 1 1 2 2 . . . . . . 1 1 Ballistic Cannon 5 | . . . . . . 1 . . . . . . . . 2 . 1 1 . Launcher 1 | . . . . 1 . . . . . . . . . . . . . . . Special Weapon 1 | . . . . . . . . . . . . . . . . 1 . . . Impact Weapon 1 | . . . 1 . . . . . . . . . . . . . . . . Slashing Weapon 1 | . . . . . . . . . . . . . . . . 1 . . . Piercing Weapon . | . . . . . . . . . . . . . . . . . . . . Special Melee Weapon 2 | . . . . 1 . . . . . . . . . . . . . . 1 Unidentified Prototypes 21 | . 1 . . 1 1 . 1 7 . 2 . . 2 . 3 2 1 . . Corrupted Parts 3 | . . . . . . . 2 1 . . . . . . . . . . . System Corruption 11 | . . . . . . . 9 2 . . . . . . . . . . . Parts Lost 78 | . 5 . 7 . 4 4 3 1 4 6 8 . . . 1 5 . 1 29 Power 17 | . 2 . 3 . . 1 2 . . 2 1 . . . . . . . 6 Propulsion 19 | . . . 2 . 2 1 . . 1 . 5 . . . . . . . 8 Utility 25 | . 1 . 1 . . 2 1 . . 3 2 . . . . 4 . 1 10 Weapon 17 | . 2 . 1 . 2 . . 1 3 1 . . . . 1 1 . . 5 Highest Loss Streak 15 | . 2 . 3 . 4 3 2 1 4 3 3 . . . 1 2 . 1 15 To Critical Strikes 1 | . . . . . . . . . . . . . . . . . . . 1 Average Backups 12 | 2 15 15 15 13 11 9 9 10 10 10 10 10 10 11 11 7 6 7 9 Power . | . 1 . . . . . . . . . . . . 1 . . 1 . . Propulsion 1 | . 2 2 2 3 . . . . . . 1 1 . . . . . . 1 Utility 6 | . 8 11 10 5 5 5 3 5 6 4 5 5 5 5 5 2 . . 1 Weapon 2 | . 3 2 2 1 1 . . 1 1 3 2 2 2 2 2 2 2 4 3 Tool/Special . | . . . . . . . . . . . . . . . . . . . . Unused Backups 59 | . 6 1 21 7 3 1 . 1 . 2 . . . . 4 5 . 4 4 Power . | . . . . . . . . . . . . . . . . . . . . Propulsion 7 | . 1 . 2 3 . . . . . 1 . . . . . . . . . Utility 29 | . 3 . 9 3 3 1 . . . . . . . . 4 2 . . 4 Weapon 18 | . 2 1 10 1 . . . 1 . . . . . . . 1 . 2 . Tool/Special 5 | . . . . . . . . . . 1 . . . . . 2 . 2 . Average Slot Usage (%) 90 | . 99 98 97 96 53 82 83 90 89 93 89 90 70 77 79 77 75 86 82 Engine 12 | . 13 20 25 25 5 3 2 . . . . . . . 1 2 . . . Core 1 | . . . . 2 . 2 6 5 . 1 5 5 5 5 1 . . . . Reactor 4 | . . . . . . . . 4 11 7 4 5 5 5 9 11 16 17 15 Treads 8 | . 27 22 14 . . 2 . . . . . . . . . . . . . Leg 10 | . . . . . 4 28 35 30 34 34 29 32 21 15 14 16 12 21 23 Wheel 4 | . . . 11 14 . . . . . . 2 . . . . . . . . Device 14 | . 11 11 5 13 12 13 11 21 17 19 22 22 24 26 24 25 21 15 10 Storage 9 | . 13 11 13 13 4 5 5 5 5 5 5 5 5 5 4 2 5 4 4 Processor 2 | . . . . . 4 6 3 . 5 5 2 1 . . . 2 4 13 15 Hackware 1 | . . . . . 4 2 . . . 2 . . 2 5 5 2 4 4 4 Protection 1 | . 2 . 2 . . 2 3 1 . 1 . 1 2 . 1 2 . . . Energy Gun 3 | . 4 32 3 . . . 11 9 1 . 2 1 . 4 . . . . . Energy Cannon 1 | . . . 1 . 4 . . . . 1 8 8 . 5 2 . . . . Ballistic Gun 8 | . 23 . 17 . . 3 . . 4 10 3 5 . 5 3 1 . 2 2 Launcher 1 | . . . . 11 . . . . . . . . . . . . . . . Special Melee Weapon 2 | . . . . 13 1 . . . . . . . . . . . . . . Peak Build Rating 226 | 7 25 25 35 41 120 100 107 138 135 152 144 129 125 134 152 178 221 220 226 Average Rating 80 | 4 16 16 19 37 104 88 97 117 119 137 125 126 110 132 146 161 191 210 200 On Entrance 100 | . 7 25 17 31 41 82 93 107 135 120 114 124 128 125 134 146 178 186 220 Avg Prop Armor Cover (%) 9 | . . . 18 . 9 5 1 4 2 4 3 . 2 . . 9 . . 18 Naked Turns . | . . . . . . . . . . . . . . . . . . . . Heaviest Build 129 | 13 53 57 110 106 50 70 74 85 84 89 81 89 81 93 120 120 118 129 128 Greatest Support 214 | 40 40 40 40 12 48 138 146 155 173 208 178 149 140 132 132 160 132 214 212 Greatest Overweight (x) 10 | . 1 1 10 8 2 . . 5 . . . . 5 . . 1 1 . 2 Average Overweight (x) 2 | . . 1 4 7 . . . . . . . . . . . . . . . Largest Inventory Capacity 25 | 8 20 20 25 25 25 15 15 15 15 15 15 15 15 15 15 15 10 15 15 Average Capacity 17 | 7 17 20 22 24 15 15 15 15 15 15 15 15 15 15 15 10 8 11 14 Most Carried 25 | 6 20 19 25 25 25 15 15 15 15 15 15 15 15 15 15 15 10 12 15 Average Carried 16 | 2 15 16 21 23 15 14 13 14 14 14 14 14 14 15 14 10 7 10 12 Final Capacity 25 | 8 20 20 25 25 15 15 15 15 15 15 15 15 15 15 15 5 10 15 5 Final Carried 25 | 4 17 18 25 25 15 15 14 15 15 15 15 15 15 15 15 5 10 11 5 Transmogrified Parts 72 | . . . . . 6 19 3 10 2 8 10 5 6 1 2 . . . . Integrity Recovered 2616 | . . . . . 98 1128 174 209 161 156 354 115 161 7 53 . . . . Class Distribution -------------------- 56% | Mutant 11% | Generator-Mutant 10% | Scavenger-Mutant 5% | Scavenger-Gunner 4% | Tank 3% | Gunner Dominant Class ---------------- Mutant | -10/Materials Gunner | -10/Mines Mutant | -10/Subcaves Mutant | -7/Scraptown Mutant | -5/Factory Mutant | -5/Upper Caves Mutant | -5/Upper Caves Mutant | -5/Warlord Scavenger-Mutant | -4/Proximity Caves Scavenger-Gunner | -4/Factory Scavenger-Gunner | -4/Upper Caves Scavenger-Gunner | -4/Upper Caves Mutant | -4/Zhirov Derelict-Skirmisher | -3/Proximity Caves Derelict-Tank | -3/Research Tank | -3/Quarantine Generator-Mutant | -2/Research Generator-Mutant | -2/Testing Generator-Mutant | -2/Protoforge Resources | -11 -10 -10 -10 -7 -5 -5 -5 -5 -4 -4 -4 -4 -4 -3 -3 -3 -2 -2 -2 ----------- Run | Yrd Mat Min Sub Scr Fac Upp Upp War Pro Fac Upp Upp Zhi Pro Res Qua Res Tes Frg Matter Collected 11018 | 290 864 1081 975 155 201 841 215 40 153 530 584 30 . 146 1361 841 741 987 983 Remotely 96 | 50 46 . . . . . . . . . . . . . . . . . . Salvage Created 14066 | 117 1050 176 644 . 429 402 228 86 201 1113 1202 190 . . 1270 1148 1143 2859 1808 Parts 648 | 5 90 10 45 . 23 8 6 2 8 55 42 3 . . 41 62 58 114 76 Haulers Intercepted 5 | . 2 . . . . . . . . . . . . . 1 . 1 1 . Recyclers Shooed 9 | . . . . . 3 . . . . 3 . . . . 3 . . . . Parts Field Recycled . | . . . . . . . . . . . . . . . . . . . . Retrieved Matter . | . . . . . . . . . . . . . . . . . . . . Parts Self-Destructed 102 | . . . 24 . . 10 3 . 6 . 42 2 . 15 . . . . . Prevented 6 | . . . . . . . . . 1 . . 1 . 4 . . . . . Parts Restored . | . . . . . . . . . . . . . . . . . . . . Kills | -11 -10 -10 -10 -7 -5 -5 -5 -5 -4 -4 -4 -4 -4 -3 -3 -3 -2 -2 -2 ------- Run | Yrd Mat Min Sub Scr Fac Upp Upp War Pro Fac Upp Upp Zhi Pro Res Qua Res Tes Frg Combat Hostiles Destroyed 226 | . 29 8 21 . 11 11 4 1 5 11 18 2 . . 13 22 18 28 24 Melee 25 | . . . . . . . . . . . . . . . . 6 8 10 1 Guns 80 | . 29 8 9 . . 2 2 . 3 9 . . . . 4 5 . 4 5 Cannons 90 | . . . 10 . 2 9 . . 2 2 17 2 . . 8 9 10 5 14 AOE 21 | . . . . . 8 . 2 . . . . . . . . 1 . 7 3 Classes Destroyed 28 | 2 7 . 2 . 3 1 1 1 1 . 1 1 . . . 1 2 3 2 Worker 8 | . 1 . . . . . . . . 1 . . . . 4 . . 2 . Builder 12 | . . . . . 3 . . . . 3 . . . . 3 . 1 2 . Tunneler 3 | 1 2 . . . . . . . . . . . . . . . . . . Hauler 5 | . 2 . . . . . . . . . . . . . 1 . 1 1 . Recycler 6 | 1 . . . . 1 . . . . 2 . . . . 2 . . . . Mechanic 3 | . 1 . . . . . . . . . . . . . . . . 1 1 Operator 9 | . 2 . . . . . . . . 3 . . . . . 2 . 1 1 Drone 1 | . . . . . . . . . . . . . . . . . . . 1 Watcher 10 | . 3 . . . 1 . . . . . . . . . . 3 1 2 . Swarmer 42 | . 13 3 7 . 5 7 2 . 2 . 1 . . . . . 2 . . Grunt 77 | . 16 5 4 . 3 2 . . . 5 9 . . . 7 9 . 12 5 Brawler 3 | . . . . . 1 . . . . . . . . . . . . 1 1 Duelist 4 | . . . . . . . . . . . 3 . . . . . . 1 . Researcher 2 | . . . . . . . . . . . . . . . . . . 2 . Sentry 17 | . . . 1 . . 1 1 . . 4 2 1 . . 4 . 2 1 . Specialist 3 | . . . . . . . . . . . . . . . . 1 . . 2 Hunter 19 | . . . . . . . . . 2 2 1 . . . 2 . 2 4 6 Programmer 32 | . . . . . 2 1 . . 1 . 2 . . . . 12 5 7 2 Heavy 2 | . . . . . . . . . . . . . . . . . 2 . . Behemoth 2 | . . . . . . . . . . . . . . . . . 2 . . Hotshot 3 | . . . . . . . . . . . . . . . . . . . 3 Striker 3 | . . . . . . . . . . . . . . . . . . . 3 Executioner 2 | . . . . . . . . 1 . . . . . . . . . . 1 Alpha 7 1 | . . . . . . . . . . . . . . . . . . 1 . Fortress 1 | . . . . . . . . . . . . . . . . . . 1 . Subdweller 9 | . . . 9 . . . . . . . . . . . . . . . . Decomposer 2 | . . . . . . 1 . . . . . 1 . . . . . . . Samaritan 6 | . . . . . . 4 1 . . . 1 . . . . . . . . Thug 3 | . . . . . . . . . . . . . . . . . 3 . . Fireman 1 | . . . . . . . 1 . . . . . . . . . . . . Mutant 1 | . . . . . . . . . . . . 1 . . . . . . . Best Kill Streak 18 | 1 4 4 4 . 8 5 3 1 3 6 7 1 . . 10 6 6 18 9 Combat Bots Only 14 | . 4 4 4 . 7 5 3 1 3 3 7 1 . . 5 6 5 14 9 Max Kills in Single Turn 4 | 1 2 1 1 . 4 1 1 1 1 2 1 1 . . 2 1 1 4 3 Gunslinging 1 | . 1 . . . . . . . . . . . . . . . . . . Exploded 4 | . . . . . 3 . 1 . . . . . . . . 1 . 4 1 Melee 1 | . . . . . . . . . . . . . . . . 1 1 1 1 Uniques/NPCs Destroyed . | . . . . . . . . . . . . . . . . . . . . Combat | -11 -10 -10 -10 -7 -5 -5 -5 -5 -4 -4 -4 -4 -4 -3 -3 -3 -2 -2 -2 -------- Run | Yrd Mat Min Sub Scr Fac Upp Upp War Pro Fac Upp Upp Zhi Pro Res Qua Res Tes Frg Hostile Shots Fired 2158 | . 108 34 79 . 96 77 68 45 60 152 125 4 . 8 177 287 286 179 373 Missed 783 | . 26 12 19 . 27 24 17 12 22 56 32 1 . 3 83 99 125 73 152 Deflected 2 | . . . . . . . . . . . . . . . . . . . 2 Hits 1375 | . 82 22 60 . 69 53 51 33 38 96 93 3 . 5 94 188 161 106 221 Melee 17 | . . . . . . . . . . 1 5 . . . . 7 . . 4 Projectile 1358 | . 82 22 60 . 69 53 51 33 38 95 88 3 . 5 94 181 161 106 217 AOE 7 | . . . . . . . . 1 . . . . . . . . . . 6 Critical Strikes 86 | . . 1 1 . 5 . 1 3 1 2 4 1 . . 5 16 13 8 25 Actively Blocked 1 | . . . . . . . . . . . 1 . . . . . . . . Part Disruptions 9 | . . . . . . . 4 . . . . . . . . 4 1 . . Damage Taken 23915 | . 944 279 1168 . 1259 929 861 1079 550 1815 2034 64 . 178 972 2691 1927 1543 5622 Core 2881 | . 242 68 263 . 132 79 12 177 91 152 349 . . 21 112 146 96 77 864 Absorbed by Shields 6948 | . . . . . . . . 170 166 23 . . . . 1019 1369 2011 860 1330 Ignored by Resistances 145 | . . . . . . 42 21 . . 14 . . . . . 68 . . . Regen/Repaired (Parts) 2100 | . . . . . . . . 72 . . . . . . . 274 817 523 414 Core Remaining (%) 85 | 100 . . . 95 . . . . 57 . . . . 78 . 99 . . . Volleys Fired 835 | 10 99 18 58 . 38 48 14 35 20 48 87 12 1 8 87 52 76 51 73 Largest 3 | 2 3 3 3 . 2 2 2 2 3 3 3 1 1 1 3 3 1 2 2 Hottest 300 | 40 195 195 195 . 180 81 162 165 203 236 236 90 35 90 213 183 300 145 300 Shots Fired 1322 | 20 204 52 78 . 39 77 29 47 26 140 103 14 1 8 170 112 76 54 72 Gun 776 | 20 204 52 58 . . 38 29 46 22 114 3 . 1 8 63 30 . 40 48 Cannon 534 | . . . 20 . 27 39 . 1 4 26 100 14 . . 107 82 76 14 24 Launcher 12 | . . . . . 12 . . . . . . . . . . . . . . Special . | . . . . . . . . . . . . . . . . . . . . Kinetic 904 | 20 181 . 51 . . 77 . 22 16 114 3 . 1 4 143 92 73 49 58 Thermal 318 | . 23 52 25 . 27 . 29 4 1 25 100 14 . . . . 3 5 10 Explosive 12 | . . . . . 12 . . . . . . . . . . . . . . Electromagnetic 59 | . . . 2 . . . . 20 5 . . . . 4 23 5 . . . Entropic 29 | . . . . . . . . 1 4 1 . . . . 4 15 . . 4 Robot Hit Streak 29 | 3 12 10 29 . 4 10 5 16 10 11 17 25 . 5 25 17 23 20 14 Robot Miss Streak 10 | 6 7 6 3 . 2 5 2 6 2 4 2 1 . 3 2 2 5 4 10 Penetration Max 2 | . . . . . . . . . . 2 . . . . 1 . 1 1 2 Secondary Targets 8 | . 2 2 . . . . 1 . . 3 . . . . . . . . . Max Gunslinging Chain 1 | . 1 1 . . . . 1 . . 1 . . . . . . . . . Capacitor 89 | . . . . . . . . . . . 75 14 . . . . . . . Shots Hit Robots 990 | 11 129 42 50 2 16 50 19 19 17 98 85 9 . 5 117 97 74 80 70 Core Hits 600 | 4 90 45 21 . 36 22 8 5 9 48 40 6 . 4 45 39 28 78 72 Critical Kills 28 | . . . 1 . . . . . . 3 1 . . . . . . 9 14 Critical Parts Destroyed 33 | . 1 . 3 . . . 1 . 1 4 . . . . . 1 1 6 15 Critical Strikes 94 | . 1 . 4 . . 7 2 . 2 7 1 . . . 6 5 8 21 30 Burn 1 | . . . . . . . 1 . . . . . . . . . . . . Meltdown 5 | . . . . . . . . . . . 1 . . . . . . 3 1 Destroy 56 | . 1 . 2 . . . 1 . 1 7 . . . . . 1 1 13 29 Blast 21 | . . . . . . 7 . . . . . . . . 6 1 7 . . Smash 2 | . . . 2 . . . . . . . . . . . . . . . . Sever 5 | . . . . . . . . . . . . . . . . . . 5 . Sunder 4 | . . . . . . . . . 1 . . . . . . 3 . . . Melee Attacks 139 | . . . 7 2 1 . . . . . . . . . . 29 22 60 18 Impact 7 | . . . 7 . . . . . . . . . . . . . . . . Slashing 128 | . . . . . . . . . . . . . . . . 29 22 60 17 Piercing . | . . . . . . . . . . . . . . . . . . . . Sneak Attacks 10 | . . . . 2 1 . . . . . . . . . . . 1 5 1 Combat Hostiles 2 | . . . . . . . . . . . . . . . . . . 2 . Follow-up Attacks . | . . . . . . . . . . . . . . . . . . . . Damage Inflicted 39956 | 98 1271 569 1107 . 1856 1576 460 392 499 3012 3118 308 . 104 4527 4689 4950 6578 4842 Guns 11008 | 98 1181 569 635 . . 606 460 392 213 2284 47 . . 104 1279 720 . 1274 1146 Cannons 17662 | . . . 324 . 334 970 . . 286 648 3071 308 . . 3178 2876 3570 473 1624 Explosions 4936 | . 86 . . . 1522 . . . . 53 . . . . . . . 1630 1645 Melee 6232 | . . . 148 . . . . . . . . . . . . 1084 1380 3201 419 Ramming 118 | . 4 . . . . . . . . 27 . . . . 70 9 . . 8 Kinetic 17421 | 98 936 . 573 . . 1576 . . 184 2284 47 . . 23 3678 2568 2750 1377 1327 Thermal 11713 | . 245 569 368 . 334 . 460 168 . 570 3071 308 . . . . 820 2000 2800 Explosive 1522 | . . . . . 1522 . . . . . . . . . . . . . . Electromagnetic 1363 | . 86 . 18 . . . . 224 29 53 . . . 81 779 93 . . . Impact 148 | . . . 148 . . . . . . . . . . . . . . . . Slashing 6084 | . . . . . . . . . . . . . . . . 1084 1380 3201 419 Piercing . | . . . . . . . . . . . . . . . . . . . . Entropic 1587 | . . . . . . . . . 286 78 . . . . . 935 . . 288 Highest Corruption 22 | . 19 9 16 . 4 13 22 22 1 2 3 3 3 4 1 13 5 10 15 Average Corruption 8 | . 15 9 8 . 2 4 19 13 1 2 2 3 3 3 1 9 2 8 11 Corruption Purged 1 | . . . . . . . . . . . . . . . 1 . . . . Corruption Blocked . | . . . . . . . . . . . . . . . . . . . . Effects 282 | . 58 4 15 . 3 18 16 2 . 8 13 9 5 8 2 36 1 50 34 Message Errors 67 | . 12 . 3 . . 8 2 1 . . 3 2 1 3 . 13 . 13 6 Matter Fused 69 | . 16 1 6 . . 4 8 1 . 1 1 1 2 1 2 5 1 10 9 Heat Flow Errors 28 | . 9 . 2 . . 1 2 . . 1 1 1 . 1 . 1 . 6 3 Energy Discharges 29 | . 6 2 1 . 1 1 3 . . . 2 1 1 1 . 3 . 3 4 Parts Rejected 4 | . . 1 . . . . . . . . . . . . . . . 1 2 Parts Fused 5 | . 1 . 1 . 1 1 . . . . . . . . . 1 . . . Data Loss (minor) 35 | . 8 . 2 . . 2 . . . 3 2 2 1 1 . 5 . 5 4 Data Loss (major) 10 | . 2 . . . . . . . . . 1 1 . 1 . 1 . 4 . Misfires 11 | . 2 . . . . . 1 . . . 1 1 . . . 3 . 3 . Alerts 8 | . 1 . . . . . . . . . 1 . . . . 2 . 3 1 Misdirections 3 | . . . . . . . . . . . . . . . . . . . 3 Weapon Failures 13 | . 1 . . . 1 1 . . . 3 1 . . . . 2 . 2 2 Overload Shots . | . . . . . . . . . . . . . . . . . . . . Overflow Damage 1458 | . 2 . 60 . 103 97 . . 23 . 28 6 . . 75 277 139 530 118 Projectiles 588 | . . . 9 . 6 97 . . 23 . 28 6 . . 75 211 87 25 21 Explosions 204 | . 2 . . . 97 . . . . . . . . . . . . 29 76 Melee 666 | . . . 51 . . . . . . . . . . . . 66 52 476 21 Knockbacks 55 | . . . . . . 5 . . . . . . . . 19 17 5 3 6 Impact . | . . . . . . . . . . . . . . . . . . . . Kinetic 51 | . . . . . . 5 . . . . . . . . 15 17 5 3 6 Secondary 4 | . . . . . . . . . . . . . . . 4 . . . . Self-Inflicted Damage 212 | . 104 . . . . . . . . . . . . . . . . . 108 Shots 4 | . 3 . . . . . . . . . . . . . . . . . 1 Rammed 1 | . 1 . . . . . . . . . . . . . . . . . . Targets Rammed 9 | . 1 . . . . . . . . 3 . . . . 3 1 . . 1 Kicked 8 | . . . . . . . . . . 3 . . . . 3 1 . . 1 Crushed . | . . . . . . . . . . . . . . . . . . . . Highest Temperature 509 | . 294 348 227 . 306 161 509 19 24 251 426 295 . 248 242 90 196 147 100 Average Temperature 102 | . 70 146 82 . 102 39 161 11 16 110 149 93 . 64 117 40 108 56 54 Received Heat Transfer 4315 | . 324 144 428 . 396 99 552 162 7 393 321 60 . 9 117 516 561 88 138 Effects 13 | . . 1 . . 2 . 5 . . . 2 . . . 3 . . . . Shutdowns 3 | . . 1 . . . . 2 . . . . . . . . . . . . Energy Bleed 4 | . . . . . 1 . 2 . . . . . . . 1 . . . . Interference 5 | . . . . . 1 . . . . . 2 . . . 2 . . . . Damage (minor) 1 | . . . . . . . 1 . . . . . . . . . . . . Siege Activations . | . . . . . . . . . . . . . . . . . . . . Martial Activations . | . . . . . . . . . . . . . . . . . . . . Shielding Activations 1 | . . . . . . . . . . . . . . . . . . . 1 Total Turns 47 | . . . . . . . . . . . . . . . . . . . 47 Longest Duration 47 | . . . . . . . . . . . . . . . . . . . 47 Robots Disrupted 1 | . . . . . . . . 1 . . . . . . . . . . . Combat Hostiles 1 | . . . . . . . . 1 . . . . . . . . . . . Robots Corrupted 4 | . . . 2 . . . . 1 . . . . . . 1 . . . . Combat Hostiles 4 | . . . 2 . . . . 1 . . . . . . 1 . . . . Parts Fried 5 | . . . 2 . . . . 2 . 1 . . . . . . . . . Impact Corruptions 2 | . . . 2 . . . . . . . . . . . . . . . . Robots Melted 6 | . . . . . 1 . . . . . 1 . . . . . . 3 1 Combat Hostiles 5 | . . . . . 1 . . . . . 1 . . . . . . 2 1 Parts Melted 24 | . . . 1 . 1 . . 1 . . 7 2 . . . . . 12 . Heat Transferred 11570 | . 295 700 533 . 500 . 814 238 . 605 3286 333 . . . . . 2040 2226 Parts Sabotaged . | . . . . . . . . . . . . . . . . . . . . Parts Stolen . | . . . . . . . . . . . . . . . . . . . . Parts Stripped . | . . . . . . . . . . . . . . . . . . . . Power Chain Reactions 1 | . 1 . . . . . . . . . . . . . . . . . . Alert | -11 -10 -10 -10 -7 -5 -5 -5 -5 -4 -4 -4 -4 -4 -3 -3 -3 -2 -2 -2 ------- Run | Yrd Mat Min Sub Scr Fac Upp Upp War Pro Fac Upp Upp Zhi Pro Res Qua Res Tes Frg Maximum Alert Level 5 | . 2 1 . . 2 . . . . 2 . . . . 1 4 4 5 4 Low Security (%) 47 | 100 94 21 . . 46 . . . . . . . . . 77 11 . . . Level 1 12 | . 5 78 . . 35 . . . . . . . . . 22 25 . . . Level 2 14 | . . . . . 18 . . . . 100 . . . . . 39 11 27 . Level 3 13 | . . . . . . . . . . . . . . . . 16 72 39 15 Level 4 10 | . . . . . . . . . . . . . . . . 6 16 22 84 Level 5 . | . . . . . . . . . . . . . . . . . . 1 . High Security 1 | . . . . . . . . . . . . . . . . . . 10 . Max Security . | . . . . . . . . . . . . . . . . . . . . Peak Influence 1882 | 5 451 312 . . 428 . . . . 677 . . . . 232 1219 1212 1882 1399 Initial 1100 | . . 175 . . . . . . . 528 . . . . . 126 683 678 1100 Average 441 | . 98 237 . . 199 . . . . 543 . . . . 124 531 933 1021 1212 Influence Increases 10394 | 10 1073 307 275 . 542 251 95 20 225 990 474 20 . 169 583 1633 987 1946 794 Destroy 0b10 Robot/C 5140 | . 580 240 260 . 220 220 80 20 100 220 420 20 . 120 320 440 500 820 560 Destroy 0b10 Robot/NC 290 | 10 55 . . . 25 5 . . . 45 . . . . 50 25 15 45 15 Destroy Leader 720 | . 90 40 10 . 32 20 . . 20 70 30 . . 10 72 46 104 136 40 Allied During Kill 513 | . . 12 5 . . 6 . . . . 24 . . 39 24 . 58 293 52 Successful Hack 107 | . 15 . . . 24 . . . . 16 . . . . 24 28 . . . Select Force Hacks 30 | . 30 . . . . . . . . . . . . . . . . . . Disable Machine 450 | . 30 . . . 60 . . . . 105 . . . . . 120 45 45 45 Destroy Structure 710 | . 3 . . . 166 . . . . 24 . . . . 78 60 114 183 82 Advance Influence 450 | . . . . . . . . . . 450 . . . . . . . . . Partial Spotted 30 | . . . . . . . . . . . . . . . . . . 30 . Lose Combat Pursuer 540 | . 90 15 . . 15 . 15 . 105 60 . . . . 15 180 45 . . Miscellaneous 1414 | . 180 . . . . . . . . . . . . . . 734 106 394 . Influence Decreases 9262 | 10 622 582 376 75 158 557 168 25 100 461 657 271 220 169 359 642 996 1270 1544 Entered New Map 3189 | . . 276 92 75 . 143 15 5 . 47 243 91 220 . . 98 532 528 824 Time Decay 4771 | 10 572 286 224 . 118 374 133 20 80 254 294 180 . 149 327 494 404 502 350 Search Patrol Dispatched 100 | . . . . . . . . . . 100 . . . . . . . . . Lost Part 670 | . 50 . . . 40 40 20 . 20 60 80 . . . 10 50 . 10 290 Lost Ally 382 | . . 20 60 . . . . . . . 40 . . 20 22 . 60 80 80 Purge Threat 150 | . . . . . . . . . . . . . . . . . . 150 . Squads Dispatched 57 | . 5 . . . 5 . . . 1 8 . . . . 4 6 3 17 8 Investigation 9 | . 3 . . . 1 . . . . 1 . . . . 1 . . . 3 Extermination 13 | . . . . . 1 . . . . 1 . . . . 2 2 2 4 1 Reinforcement 19 | . 2 . . . 1 . . . . 4 . . . . 1 4 1 4 2 Assault 11 | . . . . . 1 . . . 1 1 . . . . . . . 6 2 Garrison 5 | . . . . . 1 . . . . 1 . . . . . . . 3 . Intercept . | . . . . . . . . . . . . . . . . . . . . Searches Triggered 1 | . . . . . . . . . . 1 . . . . . . . . . Construction Impeded 1 | . . . . . . . . . . 1 . . . . . . . . . Haulers Reinforced 2 | . . . . . . . . . . . . . . . 1 . 1 . . Active Scanning Responses . | . . . . . . . . . . . . . . . . . . . . Cargo Convoy Interrupts . | . . . . . . . . . . . . . . . . . . . . Stealth | -11 -10 -10 -10 -7 -5 -5 -5 -5 -4 -4 -4 -4 -4 -3 -3 -3 -2 -2 -2 --------- Run | Yrd Mat Min Sub Scr Fac Upp Upp War Pro Fac Upp Upp Zhi Pro Res Qua Res Tes Frg Distress Signals 10 | . 1 . . . 1 . . . . . . . . . 1 1 1 2 3 Communications Jammed 155 | . . . . . 2 . . . . . . . . . 58 11 59 25 . Distress Signals 149 | . . . . . 2 . . . . . . . . . 57 11 55 24 . Times Spotted 449 | . 47 12 25 . 18 11 9 16 10 38 21 2 . 5 28 51 41 45 70 Peak Tracking Total 14 | . 4 3 4 . 6 4 4 10 10 14 7 1 . 4 7 9 7 11 9 Tactical Retreats 28 | . 5 1 . . 1 . 1 . 3 2 . . . . 1 12 2 . . Traps | -11 -10 -10 -10 -7 -5 -5 -5 -5 -4 -4 -4 -4 -4 -3 -3 -3 -2 -2 -2 ------- Run | Yrd Mat Min Sub Scr Fac Upp Upp War Pro Fac Upp Upp Zhi Pro Res Qua Res Tes Frg Traps Triggered 8 | . 1 . 3 . . . . . . 1 . . . 1 . 1 1 . . Indirectly . | . . . . . . . . . . . . . . . . . . . . Trap Hack Attempts . | . . . . . . . . . . . . . . . . . . . . Triggered . | . . . . . . . . . . . . . . . . . . . . Disarmed . | . . . . . . . . . . . . . . . . . . . . Reprogrammed . | . . . . . . . . . . . . . . . . . . . . Reused 1 | . . . . . . . 1 . . . . . . . . . . . . Traps Extracted . | . . . . . . . . . . . . . . . . . . . . Installed 1 | . . . . . . . 1 . . . . . . . . . . . . Triggered 1 | . . . . . . . 1 . . . . . . . . . . . . Most Traps Carried 3 | . . . . 3 3 3 3 2 2 2 . . . . . . . . . Machines | -11 -10 -10 -10 -7 -5 -5 -5 -5 -4 -4 -4 -4 -4 -3 -3 -3 -2 -2 -2 ---------- Run | Yrd Mat Min Sub Scr Fac Upp Upp War Pro Fac Upp Upp Zhi Pro Res Qua Res Tes Frg Machines Disabled 41 | . 2 . 3 . 4 . . 1 . 7 . 1 1 . 1 8 3 4 6 Max in Single Turn 2 | . 2 . 1 . 2 . . 1 . 2 . 1 1 . 1 1 1 1 2 Machines Repaired . | . . . . . . . . . . . . . . . . . . . . Machines Dismantled . | . . . . . . . . . . . . . . . . . . . . Machines Sabotaged . | . . . . . . . . . . . . . . . . . . . . Overloaded Fab Kills . | . . . . . . . . . . . . . . . . . . . . Hacking | -11 -10 -10 -10 -7 -5 -5 -5 -5 -4 -4 -4 -4 -4 -3 -3 -3 -2 -2 -2 --------- Run | Yrd Mat Min Sub Scr Fac Upp Upp War Pro Fac Upp Upp Zhi Pro Res Qua Res Tes Frg Machines Accessed 59 | . 6 1 2 2 6 . . 2 . 4 2 . 4 . 5 10 5 7 3 Terminals 30 | . 5 . . . 2 . . . . 2 . . . . 4 9 2 6 . Fabricators 2 | . . . . . . . . . . 1 . . . . . . 1 . . Repair Stations . | . . . . . . . . . . . . . . . . . . . . Recycling Units 7 | . 1 . . . 1 . . . . 1 . . . . 1 . . . 3 Scanalyzers 3 | . . . . . 1 . . . . . . . . . . 1 . 1 . Garrison Access 4 | . . . . . 2 . . . . . . . . . . . 2 . . Total Hacks 133 | . 11 1 5 6 14 . . 2 . 9 8 . 17 . 12 16 8 17 7 Successful 76 | . 9 1 5 6 4 . . 2 . 2 8 . 17 . 3 6 2 8 3 Failed 57 | . 2 . . . 10 . . . . 7 . . . . 9 10 6 9 4 Catastrophic 17 | . . . . . 2 . . . . 2 . . . . 2 4 2 4 1 Database Lockouts . | . . . . . . . . . . . . . . . . . . . . Manual 45 | . 11 . . . 3 . . . . 2 . . . . 4 14 3 1 7 Terminals 59 | . 9 . . . 4 . . . . 6 . . . . 11 14 4 11 . Fabricators 3 | . . . . . . . . . . 2 . . . . . . 1 . . Repair Stations . | . . . . . . . . . . . . . . . . . . . . Recycling Units 13 | . 2 . . . 2 . . . . 1 . . . . 1 . . . 7 Scanalyzers 12 | . . . . . 4 . . . . . . . . . . 2 . 6 . Garrison Access 7 | . . . . . 4 . . . . . . . . . . . 3 . . Terminal Hacks 45 | . . 1 5 6 2 . . 2 . . 8 . 17 . 1 . 1 2 . Record 21 | . . . 4 5 . . . . . . 7 . 5 . . . . . . Part Schematic 4 | . . . . . . . . . . . . . 4 . . . . . . Robot Analysis 4 | . . . . . . . . . . . . . 4 . . . . . . Prototype ID Bank 4 | . . . . . . . . . . . . . 4 . . . . . . Open Door 4 | . . 1 . . . . . 2 . . 1 . . . . . . . . Level Access Points 2 | . . . . . 1 . . . . . . . . . . . 1 . . Alert Level 1 | . . . . . . . . . . . . . . . . . . 1 . Unreport Threat 1 | . . . . . . . . . . . . . . . . . . 1 . Locate Traps 2 | . . . . . 1 . . . . . . . . . 1 . . . . Proto ID Catalog 2 | . . . 1 1 . . . . . . . . . . . . . . . Fabricator Hacks 1 | . . . . . . . . . . . . . . . . . 1 . . Network Status 1 | . . . . . . . . . . . . . . . . . 1 . . Repair Station Hacks . | . . . . . . . . . . . . . . . . . . . . Recycling Unit Hacks 2 | . 1 . . . 1 . . . . . . . . . . . . . . Report Inventory 1 | . . . . . 1 . . . . . . . . . . . . . . Retrieve Components 1 | . 1 . . . . . . . . . . . . . . . . . . Scanalyzer 8 | . . . . . . . . . . . . . . . . 2 . 6 . Insert Component 2 | . . . . . . . . . . . . . . . . . . 2 . Retrieve Study 6 | . . . . . . . . . . . . . . . . 2 . 4 . Garrison Access Hacks . | . . . . . . . . . . . . . . . . . . . . Unauthorized Hacks 20 | . 8 . . . 1 . . . . 2 . . . . 2 4 . . 3 Terminals 13 | . 7 . . . . . . . . 1 . . . . 1 4 . . . Assimilate 2 | . . . . . . . . . . 1 . . . . 1 . . . . Botnet 2 | . 2 . . . . . . . . . . . . . . . . . . Skim 9 | . 5 . . . . . . . . . . . . . . 4 . . . Fabricators . | . . . . . . . . . . . . . . . . . . . . Repair Stations . | . . . . . . . . . . . . . . . . . . . . Recycling Units 7 | . 1 . . . 1 . . . . 1 . . . . 1 . . . 3 Tunnel 1 | . 1 . . . . . . . . . . . . . . . . . . Fedlink 6 | . . . . . 1 . . . . 1 . . . . 1 . . . 3 Scanalyzers . | . . . . . . . . . . . . . . . . . . . . Garrison Access . | . . . . . . . . . . . . . . . . . . . . Data Cores Recovered 2 | . . . . . . . . . . . . . . . . 1 . . 1 Used 1 | . . . . . . . . . . . . . . . . 1 . . . Hacking Detections 38 | . 4 . . . 5 . . . . 3 . . . . 4 9 4 6 3 Full Trace Events . | . . . . . . . . . . . . . . . . . . . . Feedback Events . | . . . . . . . . . . . . . . . . . . . . Feedback Blocked . | . . . . . . . . . . . . . . . . . . . . Robot Schematics Acquired 2 | . . . . . . . . . . . . . . . . . . 2 . Robots Built . | . . . . . . . . . . . . . . . . . . . . Authchips . | . . . . . . . . . . . . . . . . . . . . Time . | . . . . . . . . . . . . . . . . . . . . Total Robot Build Rating . | . . . . . . . . . . . . . . . . . . . . Part Schematics Acquired 13 | . . . . . . . . . . . . . 4 . . . . 9 . Parts Built . | . . . . . . . . . . . . . . . . . . . . Authchips . | . . . . . . . . . . . . . . . . . . . . Time . | . . . . . . . . . . . . . . . . . . . . Total Part Build Rating . | . . . . . . . . . . . . . . . . . . . . Part Studies Acquired 6 | . . . . . . . . . . . . . . . . 2 . 4 . Parts Repaired . | . . . . . . . . . . . . . . . . . . . . Time . | . . . . . . . . . . . . . . . . . . . . Parts Recycled . | . . . . . . . . . . . . . . . . . . . . Recycled Matter . | . . . . . . . . . . . . . . . . . . . . Retrieved Matter . | . . . . . . . . . . . . . . . . . . . . Retrieved Components 9 | . 9 . . . . . . . . . . . . . . . . . . Parts Scanalyzed . | . . . . . . . . . . . . . . . . . . . . Part Schematics Acquired . | . . . . . . . . . . . . . . . . . . . . Parts Damaged . | . . . . . . . . . . . . . . . . . . . . Bothacking | -11 -10 -10 -10 -7 -5 -5 -5 -5 -4 -4 -4 -4 -4 -3 -3 -3 -2 -2 -2 ------------ Run | Yrd Mat Min Sub Scr Fac Upp Upp War Pro Fac Upp Upp Zhi Pro Res Qua Res Tes Frg Used RIF Installer . | . . . . . . . . . . . . . . . . . . . . Robots Hacked 4 | . . . . 2 1 . . . . . . . . . . . . . 1 Non-combat 1 | . . . . . 1 . . . . . . . . . . . . . . Combat 3 | . . . . 2 . . . . . . . . . . . . . . 1 Robot Hacks Applied 4 | . . . . 2 1 . . . . . . . . . . . . . 1 parse_system 3 | . . . . 2 . . . . . . . . . . . . . . 1 find_recycling 1 | . . . . . 1 . . . . . . . . . . . . . . Relay Couplers Released . | . . . . . . . . . . . . . . . . . . . . Fabnet Peak Effective % . | . . . . . . . . . . . . . . . . . . . . Robots Rewired 12 | . . 3 . . . . . . . . 2 3 . . . . . 4 . Allies Hacked 3 | . . . . . . . . . . . 1 . . . . . . 2 . Hacks Repelled 1 | . . . . . . . . . . . . . . . 1 . . . . Allies | -11 -10 -10 -10 -7 -5 -5 -5 -5 -4 -4 -4 -4 -4 -3 -3 -3 -2 -2 -2 -------- Run | Yrd Mat Min Sub Scr Fac Upp Upp War Pro Fac Upp Upp Zhi Pro Res Qua Res Tes Frg Total Allies 30 | . . 3 7 . . 1 . . . . 2 3 . . 2 . 3 4 5 Largest Group 5 | . . 2 3 . . 1 . . . . 2 3 3 3 2 . 3 4 5 Highest-Rated Group 395 | . . 24 90 . . 145 . . . . 95 144 144 144 89 . 247 395 290 Highest-Rated Ally 158 | . . 16 90 . . 145 . . . . 48 48 48 48 56 . 83 158 58 Initial UFD Resources 77 | . . . . . 38 48 48 48 51 51 61 61 61 64 64 74 77 77 77 Total Orders 7 | . . . . . . . . . . . . . 6 . . . . 1 . STAY 4 | . . . . . . . . . . . . . 3 . . . . 1 . FOLLOW 3 | . . . . . . . . . . . . . 3 . . . . . . Ally Attacks 224 | . . 17 38 . . 2 . . . . 13 . . 10 23 . 33 54 34 Total Damage 6917 | . . 174 268 . . 38 . . . . 392 . . 308 771 . 950 2883 1133 Kills 42 | . . 4 2 . . . . . . . 3 . . 6 3 . 7 11 6 Allies Corrupted 1 | . . . . . . . . . . . 1 . . . . . . . . Allies Melted 1 | . . . . . . . . 1 . . . . . . . . . . . X0-1V1 Amusement Gains 368 | . 41 . 10 . 14 18 2 31 2 14 22 3 25 11 4 30 5 80 56 Good Acts 156 | . 9 15 58 . 5 8 2 1 . 6 3 1 . 1 7 12 13 9 6 Bad Acts 141 | . 27 8 65 . 1 1 3 2 . 6 1 2 . . 2 7 3 4 9 Intel | -11 -10 -10 -10 -7 -5 -5 -5 -5 -4 -4 -4 -4 -4 -3 -3 -3 -2 -2 -2 ------- Run | Yrd Mat Min Sub Scr Fac Upp Upp War Pro Fac Upp Upp Zhi Pro Res Qua Res Tes Frg Active Infowar (turns) 8365 | . 327 . 472 . 245 287 . 182 214 515 56 . 126 433 933 1312 969 1508 786 Optics 2984 | . . . . . . . . 182 214 78 . . . . . . 216 1508 786 Sensors 1222 | . . . . . . 287 . . . . . . 126 433 376 . . . . Structural 188 | . . . 188 . . . . . . . . . . . . . . . . Seismic 611 | . 327 . 284 . . . . . . . . . . . . . . . . Cloaking 493 | . . . . . . . . . . 437 56 . . . . . . . . Jamming 5114 | . . . . . 245 1 . . . . . . . 114 919 1312 969 1508 46 Robot Analysis Total 4 | . . . . . . . . . . . . . 4 . . . . . . Derelict Logs Recovered 5 | . . . 1 2 . . . . . . . 2 . . . . . . . Drone Launches . | . . . . . . . . . . . . . . . . . . . . Drone Recoveries . | . . . . . . . . . . . . . . . . . . . . Exploration | -11 -10 -10 -10 -7 -5 -5 -5 -5 -4 -4 -4 -4 -4 -3 -3 -3 -2 -2 -2 ------------- Run | Yrd Mat Min Sub Scr Fac Upp Upp War Pro Fac Upp Upp Zhi Pro Res Qua Res Tes Frg Turns Passed 23889 | 115 4514 637 3993 3988 438 861 325 1053 214 547 657 361 241 433 933 1312 969 1508 790 Spaces Moved 11186 | 55 760 224 1935 1803 315 483 213 750 149 300 423 280 159 307 448 781 562 848 391 Core 17 | 15 . . . . . . . . . . . . . . . . . . 2 Treads 1479 | 40 760 224 455 . . . . . . . . . . . . . . . . Legs 6073 | . . . . . . 483 213 749 149 300 423 280 158 307 448 781 562 848 372 Wheels 3300 | . . . 1480 1803 . . . . . . . . . . . . . . 17 Hover 160 | . . . . . 158 . . 1 . . . . 1 . . . . . . Flight 157 | . . . . . 157 . . . . . . . . . . . . . . Fastest Speed 50 | 50 160 240 120 105 78 90 120 100 106 110 107 108 112 133 133 122 123 116 50 Average Speed 153 | 130 185 240 191 209 96 118 120 119 109 113 112 109 117 133 133 127 123 120 106 Slowest Speed 350 | 160 240 240 320 210 150 120 121 350 113 117 116 112 350 133 133 220 212 128 116 Overloaded Moves . | . . . . . . . . . . . . . . . . . . . . Propulsion Burnouts . | . . . . . . . . . . . . . . . . . . . . Robots Hopped . | . . . . . . . . . . . . . . . . . . . . Potential Cave-ins 20 | . . . . . . . 2 6 . . . . . . 3 3 . . 6 Cave-ins Triggered 1 | . . . . . . . . 1 . . . . . . . . . . . Teleports 1 | . . . . . . . . . . . . . . . . . . . 1 Exploration Rate (%) 53 | 3 94 69 95 84 13 72 50 91 47 10 55 46 60 51 12 90 24 80 31 Regions Visited 19 Branch Regions 14 Pre-discovered Areas 7 | . 2 . 1 . . . . . . 1 . . 3 . . . . . . Known Exits Taken 8 | . . 1 . . 1 1 . . 1 1 1 . . . 1 1 . . . Unknown Exits Taken 11 | 1 1 . 1 1 . . 1 1 . . . 1 1 1 . . 1 1 . Scrap Searched 23 | . . 1 3 6 . 2 1 . . . 4 1 . 5 . . . . . Spaces Dug 44 | . . . . . 3 . . 10 . . 3 2 . . 2 2 . 13 9 Terrain Destroyed 426 | . 2 . 3 . 110 16 . 24 4 17 13 4 . 3 39 33 33 58 67 Melee 20 | . . . . . . . . . . . . . . . . . . 11 9 Projectile 260 | . . . 3 . 13 16 . 24 4 17 13 4 . 3 39 33 33 4 54 AOE 139 | . 2 . . . 97 . . . . . . . . . . . . 40 . Terrain Rammed . | . . . . . . . . . . . . . . . . . . . . Walls Destroyed . | . . . . . . . . . . . . . . . . . . . . Machines Disabled . | . . . . . . . . . . . . . . . . . . . . Actions | -11 -10 -10 -10 -7 -5 -5 -5 -5 -4 -4 -4 -4 -4 -3 -3 -3 -2 -2 -2 --------- Run | Yrd Mat Min Sub Scr Fac Upp Upp War Pro Fac Upp Upp Zhi Pro Res Qua Res Tes Frg Total 16584 | 83 3705 284 2157 2016 413 697 257 862 175 398 573 336 213 323 632 951 718 1152 639 Wait 3490 | 1 2789 16 35 149 19 152 16 31 . 15 6 10 30 6 45 10 20 77 63 Move 11167 | 54 759 223 1934 1802 314 482 212 748 148 299 422 279 158 306 447 781 561 847 391 Hop . | . . . . . . . . . . . . . . . . . . . . Pick Up 236 | 11 28 6 42 32 7 5 5 11 1 10 5 1 4 . 11 12 10 9 26 Fast Attach 88 | . 1 . 2 3 . 2 . 10 1 4 12 1 6 2 12 10 4 18 . Attach 164 | 7 5 3 23 7 15 5 6 7 3 8 5 1 3 . 4 8 6 9 39 Detach 49 | . . . 1 3 8 . 2 1 2 1 1 . . . 1 2 5 6 16 Swap 62 | . 9 3 12 2 2 . 1 2 . 3 2 . 1 . 4 4 6 6 5 Drop 206 | . 14 2 43 14 9 3 . 16 . 7 6 2 10 1 18 17 8 29 7 Fire 835 | 10 99 18 58 . 38 48 14 35 20 48 87 12 1 8 87 52 76 51 73 Melee 139 | . . . 7 2 1 . . . . . . . . . . 29 22 60 18 Ram . | . . . . . . . . . . . . . . . . . . . . Kick 7 | . . . . . . . . . . 3 . . . . 3 . . . 1 Crush 1 | . 1 . . . . . . . . . . . . . . . . . . Escape Stasis 1 | . . . . . . . . 1 . . . . . . . . . . . Rewire 110 | . . 13 . . . . . . . . 27 30 . . . . . 40 . Trap 1 | . . . . . . . 1 . . . . . . . . . . . . Miscellaneous 28 | . . . . 2 . . . . . . . . . . . 26 . . . Route ------- -11/Scrapyard -10/Materials (discovered 6 exits: *Mat x3 / *Min x2 / *Sub) -10/Mines (discovered 4 exits: *Mat x2 / *Exi / *Sub) -10/Subcaves (discovered 3 exits: *Mat / Rec / *Scr) -7/Scraptown (discovered 2 exits: *Fac x2) -5/Factory (discovered 5 exits: Fac x4 / *Upp) -5/Upper Caves -5/Upper Caves -5/Warlord -4/Proximity Caves -4/Factory -4/Upper Caves -4/Upper Caves -4/Zhirov -3/Proximity Caves -3/Research (discovered 5 exits: *Res x2 / [*Arm] / *Qua x2) -3/Quarantine -2/Research (discovered 4 exits: *Acc x3 / *Tes) -2/Testing (discovered 3 exits: *Acc / *Sec / *Frg) -2/Protoforge History --------- Turn | Location | Event 4 | -11/Scrapyard | Discovered new exit (range 14) 116 | -11/Scrapyard | Entered Materials 307 | -10/Materials | Build established: Mutant 346 | -10/Materials | Discovered new exit (range 10) 770 | -10/Materials | Discovered new exit (range 5) 866 | -10/Materials | Discovered new exit (range 10) 1016 | -10/Materials | Discovered new exit (range 6) 1261 | -10/Materials | Discovered new exit (range 11) 1418 | -10/Materials | Identified exit to Subcaves 1446 | -10/Materials | Loaded intel: 7 terminal locations 1465 | -10/Materials | Loaded intel: 4 trap records 1496 | -10/Materials | Learned Materials trap positions 1756 | -10/Materials | Prayed at D.C.S.S. Altar Unit 1961 | -10/Materials | Core integrity fell below 50% 2211 | -10/Materials | X0-1V1 announced a LAN party 3190 | -10/Materials | X0-1V1 sent hostile S-10 Pest (x4) 3281 | -10/Materials | X0-1V1 sent hostile G-34 Mercenary (x4) 3302 | -10/Materials | Core integrity fell below 20% 3347 | -10/Materials | System corruption reached 10% 4170 | -10/Materials | X0-1V1 activates XOMVISION 4566 | -10/Materials | X0-1V1 foreshadows a heat wave 4567 | -10/Materials | X0-1V1 vaporized surrounding terrain (radius 19) 4586 | -10/Materials | X0-1V1 added 0b10 threat records associated with you (considerable) 4600 | -10/Materials | X0-1V1 sent hostile S-10 Pest (x4) 4609 | -10/Materials | Weapon slot count temporarily expanded by X0-1V1 (+2) 4625 | -10/Materials | Ranged accuracy permanently improved by X0-1V1 (+7%; -70 max core) 4630 | -10/Materials | Entered Mines 4635 | -10/Mines | Identified exit to Exiles 4635 | -10/Mines | X0-1V1 revealed exit location to -10/Exiles 4642 | -10/Mines | Deemed a non-threat by the Exiles lab entrance 4642 | -10/Mines | Core integrity permanently improved by X0-1V1 (+300) 4645 | -10/Mines | X0-1V1 activates XOMVISION 4654 | -10/Mines | X0-1V1 mutated your Weapon slot to Power slot 4654 | -10/Mines | X0-1V1 vaporized surrounding terrain (radius 19) 4656 | -10/Mines | Core integrity restored by X0-1V1 (+115) 4685 | -10/Mines | X0-1V1 sent you into danger 4736 | -10/Mines | Identified exit to Materials 4736 | -10/Mines | X0-1V1 revealed exit location to -9/Materials 4749 | -10/Mines | X0-1V1 rewrote Trooper 1a IFF filter 4840 | -10/Mines | Discovered exit to Materials (range 16) 4905 | -10/Mines | Build established: Gunner 5083 | -10/Mines | Found a Scrap Suit stashed away for nefarious purposes 5144 | -10/Mines | Found the Drone Emporium 5154 | -10/Mines | Found Prototype Device 5192 | -10/Mines | Core integrity restored by X0-1V1 (+81) 5229 | -10/Mines | Discovered exit to Subcaves (range 10) 5267 | -10/Mines | Entered Subcaves 5267 | -10/Subcaves | Accompanied by 1 ally 5268 | -10/Subcaves | A swath of the cavern ceiling suddenly collapsed 5268 | -10/Subcaves | Approached by a straggling Scientist 5268 | -10/Subcaves | Identified exit to Recycling 5341 | -10/Subcaves | Learned 2 Materials zone layouts 5396 | -10/Subcaves | Visited Clippyterm 5403 | -10/Subcaves | Learned location of Extension (-5) 5885 | -10/Subcaves | Build established: Mutant 6131 | -10/Subcaves | Shifting Twisted Machinery released Scrap Shield 6133 | -10/Subcaves | Shifting Twisted Machinery released Sub. Power Source 6194 | -10/Subcaves | Identified exit to Materials 6194 | -10/Subcaves | X0-1V1 revealed exit location to -8/Materials 6317 | -10/Subcaves | Lost 3 parts (1p1n1w) 6415 | -10/Subcaves | Discovered exit to Materials (range 8) 6589 | -10/Subcaves | X0-1V1 mutated your Utility slot to Propulsion slot 6763 | -10/Subcaves | Build established: Scavenger-Mutant 7018 | -10/Subcaves | Melee accuracy permanently improved by X0-1V1 (+7%; -70 max core) 7091 | -10/Subcaves | A Subdweller sparked back to life 7091 | -10/Subcaves | A Subdweller sparked back to life 7091 | -10/Subcaves | A Subdweller sparked back to life 7123 | -10/Subcaves | X0-1V1 sent allied G-34 Mercenary (x3) 7135 | -10/Subcaves | Found Prototype Leg 7240 | -10/Subcaves | Shifting Twisted Machinery released Mak. Light Armor Plating 7426 | -10/Subcaves | X0-1V1 activates XOMVISION 7454 | -10/Subcaves | Core integrity restored by X0-1V1 (+86) 7472 | -10/Subcaves | X0-1V1 sent you into danger 7481 | -10/Subcaves | Shifting Twisted Machinery released Mak. Light Armor Plating 7524 | -10/Subcaves | A swath of the cavern ceiling suddenly collapsed 7529 | -10/Subcaves | Core integrity restored by X0-1V1 (+98) 7545 | -10/Subcaves | X0-1V1 mutated your Propulsion slot to Weapon slot 7567 | -10/Subcaves | X0-1V1 rewrote G-34 Mercenary IFF filter 7573 | -10/Subcaves | X0-1V1 tapped a No Entrance sign 7638 | -10/Subcaves | X0-1V1 sent hostile G-34 Mercenary (x3) 7663 | -10/Subcaves | X0-1V1 mutated your Weapon slot to Propulsion slot 7698 | -10/Subcaves | Visited 4L-MR0's lab 7704 | -10/Subcaves | Identified Arachnoskeleton 7706 | -10/Subcaves | X0-1V1 sent hostile S-10 Pest (x4) 7708 | -10/Subcaves | X0-1V1 sent allied S-10 Pest (x3) 7717 | -10/Subcaves | Weapon slot count temporarily expanded by X0-1V1 (+2) 7724 | -10/Subcaves | X0-1V1 sent allied H-61 Shepherd (x1) 7731 | -10/Subcaves | X0-1V1 activates XOMVISION 7746 | -10/Subcaves | X0-1V1 mutated your Propulsion slot to Utility slot 7748 | -10/Subcaves | Lost 4 allies 7765 | -10/Subcaves | Found Prototype Device 7774 | -10/Subcaves | Found Flightbrick 7817 | -10/Subcaves | X0-1V1 sent you into danger 7846 | -10/Subcaves | X0-1V1 mutated your Utility slot to Weapon slot 7858 | -10/Subcaves | Shifting Twisted Machinery released Battle Rifle 7874 | -10/Subcaves | X0-1V1 rewrote H-61 Shepherd IFF filter 7966 | -10/Subcaves | X0-1V1 mutated your Propulsion slot to Utility slot 8065 | -10/Subcaves | X0-1V1 activates XOMVISION 8272 | -10/Subcaves | Build established: Scavenger-Tank 8590 | -10/Subcaves | X0-1V1 activates XOMVISION 8616 | -10/Subcaves | Build established: Mutant 8818 | -10/Subcaves | X0-1V1 mutated your Utility slot to Weapon slot 8928 | -10/Subcaves | X0-1V1 mutated your Weapon slot to Utility slot 9228 | -10/Subcaves | X0-1V1 activates XOMVISION 9260 | -10/Subcaves | Entered Scraptown 9574 | -7/Scraptown | Visited Assassins FH 9586 | -7/Scraptown | Heard Great Nut preacher, LISTEN AND RECITE! 9601 | -7/Scraptown | Visited Symbiants 9630 | -7/Scraptown | Visited Spacefarers 9649 | -7/Scraptown | Visited TADAMA 9689 | -7/Scraptown | Visited SPCMW 9781 | -7/Scraptown | Scanned Subdweller tech in exchange for log data 9788 | -7/Scraptown | Learned Factory security intel 9790 | -7/Scraptown | Learned Factory garrison access intel 10006 | -7/Scraptown | Visited UFD Registry 10006 | -7/Scraptown | Registered with UFD as "Megabox" 10050 | -7/Scraptown | Visited Botcube Research 10080 | -7/Scraptown | Visited Chapter 10 10109 | -7/Scraptown | Visited LU-1G1's Boring Crew 10166 | -7/Scraptown | Delivered Scrap Shield to a Scientist 10477 | -7/Scraptown | Discovered new exit (range 13) 10647 | -7/Scraptown | Guru changed UFD alias to "Protoncoil" 10856 | -7/Scraptown | Visited Curators Association 10929 | -7/Scraptown | Visited Abandonware Association 10950 | -7/Scraptown | Learned abandonware demo "ERRANTS.EXE" 10950 | -7/Scraptown | Learned abandonware demo "REVENGE.EXE" 11001 | -7/Scraptown | Visited DA-N13 Charitable Foundation 11020 | -7/Scraptown | Found DCF Scrap (27 items) 11057 | -7/Scraptown | Visited Junk Repository 11081 | -7/Scraptown | Visited A0-MCA Data Center 11108 | -7/Scraptown | Visited Scrap Suit Storage 11135 | -7/Scraptown | Visited Science Guys 11223 | -7/Scraptown | Identified Decoy Drone Bay 11545 | -7/Scraptown | Given a C rating by A0-MCA 11548 | -7/Scraptown | Found A0-MCA's Component Scanner 12480 | -7/Scraptown | Found Botcube 13141 | -7/Scraptown | Met Optimus 13141 | -7/Scraptown | Accepted into 0bPrime 13244 | -7/Scraptown | Discovered new exit (range 3) 13248 | -7/Scraptown | Entered Factory 13248 | -5/Factory | Evolved 10 slots: Propulsion x6, Utility x4 13250 | -5/Factory | Loaded intel: 4 garrison access locations 13255 | -5/Factory | Attached Flightbrick, gained temporary slots: Utility x3 13255 | -5/Factory | Identified Sfc. Transmogrifier 13258 | -5/Factory | Attached Arachnoskeleton, gained temporary slots: Propulsion x3 13444 | -5/Factory | Identified exit to Factory 13450 | -5/Factory | Garrison activated, responded to threat 13486 | -5/Factory | Identified exit to Upper Caves 13486 | -5/Factory | X0-1V1 revealed exit location to -5/Upper Caves 13531 | -5/Factory | Destroyed 7 combat bots 13548 | -5/Factory | First assault squad dispatched 13621 | -5/Factory | Loaded intel: 8 recycling unit locations 13686 | -5/Factory | Entered Upper Caves 13688 | -5/Upper Caves | UFD Scientist delivered a prototype 13695 | -5/Upper Caves | Found Prototype Protection 13716 | -5/Upper Caves | Lost 4 parts (2n2w) 14074 | -5/Upper Caves | X0-1V1 activates XOMVISION 14283 | -5/Upper Caves | Attracted the attention of an 0b10 checkpoint 14313 | -5/Upper Caves | X0-1V1 sent allied Quarantine Guard (x1) 14347 | -5/Upper Caves | Lost 3 parts (1p2u) 14348 | -5/Upper Caves | Identified exit to Upper Caves 14348 | -5/Upper Caves | X0-1V1 revealed exit location to -5/Upper Caves 14543 | -5/Upper Caves | System corruption reached 10% 14547 | -5/Upper Caves | Entered another Upper Caves area 14608 | -5/Upper Caves | Attracted the attention of an 0b10 checkpoint 14737 | -5/Upper Caves | Spotted B-75 Beast 14737 | -5/Upper Caves | X0-1V1 sent you into danger 14739 | -5/Upper Caves | Identified Enh. Scrap Shield 14763 | -5/Upper Caves | X0-1V1 sent hostile Fireman (x3) 14796 | -5/Upper Caves | Discovered new exit (range 22) 14804 | -5/Upper Caves | Encountered a Warlord checkpoint 14872 | -5/Upper Caves | Entered Warlord 14916 | -5/Warlord | System corruption cleaned by Quarantine Array 15269 | -5/Warlord | Visited the Vortex Lab 15282 | -5/Warlord | Found Prototype Energy Cannon 15283 | -5/Warlord | Warlord's base attacked by MAIN.C 15296 | -5/Warlord | Found Prototype Energy Cannon 15328 | -5/Warlord | Identified Vortex Cannon (x2) 15357 | -5/Warlord | Found Prototype Reactor 15357 | -5/Warlord | Identified Vortex Chain Reactor 15358 | -5/Warlord | X0-1V1 vaporized surrounding terrain (radius 21) 15379 | -5/Warlord | Found Prototype Hackware 15606 | -5/Warlord | Rebuked by Warlord 15633 | -5/Warlord | Warlord forces counterattacked 15675 | -5/Warlord | X0-1V1 mutated your Utility slot to Weapon slot 15708 | -5/Warlord | Spotted Executioner 15714 | -5/Warlord | Spotted Striker 15726 | -5/Warlord | Spotted Executioner 15774 | -5/Warlord | Destroyed Executioner 15801 | -5/Warlord | Found Corrupted Prototype Processor 15844 | -5/Warlord | Lost 13 allies 15856 | -5/Warlord | Opened side exit 15914 | -5/Warlord | Discovered new exit (range 12) 15915 | -5/Warlord | Crushed by falling debris 15921 | -5/Warlord | Spotted Executioner 15925 | -5/Warlord | Entered Proximity Caves 15995 | -4/Proximity Caves | Lost 4 parts (1n3w) 15999 | -4/Proximity Caves | Spotter reported a threat 16043 | -4/Proximity Caves | Attracted the attention of an 0b10 outpost 16055 | -4/Proximity Caves | Spotter reported a threat 16108 | -4/Proximity Caves | Spotter reported a threat 16124 | -4/Proximity Caves | Discovered exit to Factory (range 15) 16139 | -4/Proximity Caves | Entered Factory 16139 | -4/Factory | Evolved 2 slots: Utility x2 16152 | -4/Factory | Identified Ghost Barrier 16153 | -4/Factory | Identified Exp. Core Analyzer 16248 | -4/Factory | X0-1V1 vaporized surrounding terrain (radius 24) 16250 | -4/Factory | Build established: Scavenger-Mutant 16298 | -4/Factory | X0-1V1 announced a LAN party 16316 | -4/Factory | Loaded intel: 8 recycling unit locations 16316 | -4/Factory | Learned location of Protoforge (-2) 16389 | -4/Factory | Search patrols dispatched 16465 | -4/Factory | X0-1V1 downgraded hostiles (x2) 16518 | -4/Factory | X0-1V1 upgraded hostiles (x1) 16639 | -4/Factory | First assault squad dispatched 16665 | -4/Factory | Discovered new exit (range 14) 16666 | -4/Factory | Garrison activated, responded to threat 16685 | -4/Factory | Identified exit to Upper Caves 16686 | -4/Factory | Entered Upper Caves 16705 | -4/Upper Caves | Lost 3 parts (2u1w) 16810 | -4/Upper Caves | Lost 3 parts (1n2u) 16866 | -4/Upper Caves | Attracted the attention of an 0b10 outpost 16913 | -4/Upper Caves | Destroyed 7 combat bots 16914 | -4/Upper Caves | Core integrity restored by X0-1V1 (+235) 17065 | -4/Upper Caves | Identified exit to Upper Caves 17065 | -4/Upper Caves | X0-1V1 revealed exit location to -4/Upper Caves 17100 | -4/Upper Caves | Build established: Scavenger-Gunner 17142 | -4/Upper Caves | Learned Armory security intel 17142 | -4/Upper Caves | Learned Research security intel 17343 | -4/Upper Caves | Entered another Upper Caves area 17443 | -4/Upper Caves | Attracted the attention of an 0b10 checkpoint 17472 | -4/Upper Caves | Learned location of 1 exit from Research 17519 | -4/Upper Caves | Learned 4 Research zone layouts 17600 | -4/Upper Caves | Attacked by a delusional Derelict stockpiling Unaware 17644 | -4/Upper Caves | Discovered new exit (range 10) 17704 | -4/Upper Caves | Entered Zhirov 17704 | -4/Zhirov | Accompanied by 3 allies 17706 | -4/Zhirov | Discovered new exit (range 3) 17726 | -4/Zhirov | Met Zhirov 17747 | -4/Zhirov | Learned location of Quarantine (-3) 17747 | -4/Zhirov | Learned location of Testing (-2) 17747 | -4/Zhirov | Learned location of Command (-1) 17758 | -4/Zhirov | Zhirov requested help retrieving the SGEMP Prototype 17775 | -4/Zhirov | Found Alien Artifact 17775 | -4/Zhirov | Identified Integrated Dissipator 17775 | -4/Zhirov | Installed Integrated Dissipator, increased core heat dissipation (+20) 17849 | -4/Zhirov | Found Alien Artifact 17941 | -4/Zhirov | Cloak Generator disabled 17941 | -4/Zhirov | Attacked by Zhirov 17945 | -4/Zhirov | Entered Proximity Caves 17945 | -3/Proximity Caves | Accompanied by 3 allies 18285 | -3/Proximity Caves | Build established: Derelict-Skirmisher 18349 | -3/Proximity Caves | Discovered new exit (range 12) 18364 | -3/Proximity Caves | X0-1V1 activates XOMVISION 18378 | -3/Proximity Caves | Entered Research 18378 | -3/Research | Accompanied by 2 allies 18378 | -3/Research | Evolved 2 slots: Power x1, Utility x1 18379 | -3/Research | Identified exit to Quarantine 18380 | -3/Research | Identified exit to Research 18462 | -3/Research | Found Quantum Capacitor 18615 | -3/Research | Discovered new exit (range 6) 18627 | -3/Research | Found Fusion Bomb Launcher 18648 | -3/Research | Discovered exit to Research (range 15) 18667 | -3/Research | Build established: Derelict-Tank 18811 | -3/Research | X0-1V1 sent allied H-77 Assassin (x2) 18814 | -3/Research | P-80 Master assimilated allied H-77 Assassin 18990 | -3/Research | Loaded intel: 5 recycling unit locations 19208 | -3/Research | X0-1V1 activates XOMVISION 19303 | -3/Research | Spotted B-90 Cyclops 19311 | -3/Research | Entered Quarantine 19320 | -3/Quarantine | Spotted Alpha 7 19331 | -3/Quarantine | Cryocooling Duct disabled 19346 | -3/Quarantine | Ambient heat levels rising (+20) 19346 | -3/Quarantine | Non-combat units ordered to evacuate 19427 | -3/Quarantine | Found Prototype Hackware 19466 | -3/Quarantine | X0-1V1 added 0b10 threat records associated with you (considerable) 19533 | -3/Quarantine | Build established: Tank 19649 | -3/Quarantine | X0-1V1 activates XOMVISION 19668 | -3/Quarantine | Identified Exp. System Shield 19668 | -3/Quarantine | Found Alien Slashing Weapon 19774 | -3/Quarantine | X0-1V1 revealed exit location to -2/Research 19818 | -3/Quarantine | System corruption reached 10% 19947 | -3/Quarantine | X0-1V1 mutated your Weapon slot to Propulsion slot 19979 | -3/Quarantine | Found Alien Impact Weapon 19989 | -3/Quarantine | Fusion Bomb Launcher+ reconfigured into Item Mimic 20014 | -3/Quarantine | X0-1V1 activates XOMVISION 20018 | -3/Quarantine | Identified Sigix Broadsword 20256 | -3/Quarantine | Build established: Mutant 20323 | -3/Quarantine | X0-1V1 added 0b10 threat records associated with you (considerable) 20449 | -3/Quarantine | Found Alien Artifact 20461 | -3/Quarantine | X0-1V1 added 0b10 threat records associated with you (considerable) 20476 | -3/Quarantine | Found Alien Artifact 20482 | -3/Quarantine | Identified Subatomic Replicator 20482 | -3/Quarantine | Used Subatomic Replicator to create Alien Artifact 20531 | -3/Quarantine | X0-1V1 mutated your Propulsion slot to Utility slot 20541 | -3/Quarantine | X0-1V1 added 0b10 threat records associated with you (considerable) 20541 | -3/Quarantine | Found Alien Energy Cannon 20599 | -3/Quarantine | Build established: Scavenger-Mutant 20604 | -3/Quarantine | X0-1V1 announced a LAN party 20623 | -3/Quarantine | Entered Research 20623 | -2/Research | Evolved 2 slots: Power x1, Weapon x1 20623 | -2/Research | X0-1V1 enhanced Transport squad support 20646 | -2/Research | Discovered new exit (range 11) 20731 | -2/Research | X0-1V1 added 0b10 threat records associated with you (minor) 20793 | -2/Research | Spotted B-90 Cyclops 20823 | -2/Research | Destroyed B-90 Cyclops 20843 | -2/Research | X0-1V1 sent allied Elite (x3) 20936 | -2/Research | Build established: Generator-Mutant 21073 | -2/Research | Discovered new exit (range 19) 21239 | -2/Research | Spotted B-90 Cyclops 21257 | -2/Research | Weapon slot count temporarily expanded by X0-1V1 (+2) 21257 | -2/Research | Identified Core Cannon 21258 | -2/Research | Destroyed B-90 Cyclops 21305 | -2/Research | Spotted B-90 Cyclops 21305 | -2/Research | X0-1V1 whisked you away to safety 21321 | -2/Research | X0-1V1 sent hostile Thug (x3) 21368 | -2/Research | Found Adv. Force Booster 21440 | -2/Research | Identified exit to Access 21440 | -2/Research | X0-1V1 activates XOMVISION 21592 | -2/Research | Entered Testing 21678 | -2/Testing | Spotted Striker 21695 | -2/Testing | Spotted Striker 21737 | -2/Testing | Found Exp. Armor Integrity Analyzer 21769 | -2/Testing | Identified exit to Section 7 21769 | -2/Testing | X0-1V1 revealed exit location to -2/Section 7 21770 | -2/Testing | X0-1V1 sent you to a vault 21774 | -2/Testing | Found YOLO Cannon 21803 | -2/Testing | Found Tactical Quantum Warhead 21810 | -2/Testing | Found Containment Facilitator 21838 | -2/Testing | Found Perforator 21865 | -2/Testing | Found 2N-1CE's Frost Array 22001 | -2/Testing | X0-1V1 added 0b10 threat records associated with you (major) 22010 | -2/Testing | X0-1V1 activates XOMVISION 22020 | -2/Testing | Spotted Alpha 7 22039 | -2/Testing | Destroyed Alpha 7 22046 | -2/Testing | Found Multirail 22087 | -2/Testing | Rewired XC-QOR(K) 22095 | -2/Testing | Rewired 75-NB1(K) 22096 | -2/Testing | Rewired WQ-VTO(K) 22190 | -2/Testing | Rewired PY-IWNE1H0QJF 22355 | -2/Testing | Found Exp. Hardlight Generator 22394 | -2/Testing | Garrison activated, responded to threat 22421 | -2/Testing | Discovered exit to Access (range 13) 22512 | -2/Testing | Identified Dimensional Node Initializer 22512 | -2/Testing | Identified Supercharged TR 22595 | -2/Testing | X0-1V1 added 0b10 threat records associated with you (minor) 22637 | -2/Testing | System corruption reached 10% 22842 | -2/Testing | First assault squad dispatched 22887 | -2/Testing | Scanned by Researcher 22905 | -2/Testing | Spotted Fortress 22911 | -2/Testing | Destroyed Fortress 22948 | -2/Testing | High security lockdown imminent 22973 | -2/Testing | Destroyed 14 combat bots 23028 | -2/Testing | High security lockdown engaged 23094 | -2/Testing | Discovered new exit (range 6) 23100 | -2/Testing | Entered Protoforge 23102 | -2/Protoforge | X0-1V1 sent hostile H-88 Terminator (x3) 23123 | -2/Protoforge | Superfortress began startup sequence 23253 | -2/Protoforge | Spotted Hotshot 23253 | -2/Protoforge | Spotted Hotshot 23253 | -2/Protoforge | Spotted Hotshot 23265 | -2/Protoforge | Destroyed Hotshot 23268 | -2/Protoforge | Destroyed Hotshot 23279 | -2/Protoforge | Destroyed Hotshot 23289 | -2/Protoforge | X0-1V1 sent you to a vault 23350 | -2/Protoforge | First assault squad dispatched 23396 | -2/Protoforge | Spotted EXE-6 23396 | -2/Protoforge | Spotted EXE-6 23404 | -2/Protoforge | Allies destroyed EXE-6 23415 | -2/Protoforge | Found Exp. Core Analyzer 23416 | -2/Protoforge | Allies destroyed EXE-6 23425 | -2/Protoforge | Found Exp. Core Analyzer 23440 | -2/Protoforge | Spotted SKR-2 23440 | -2/Protoforge | Spotted SKR-2 23441 | -2/Protoforge | Spotted SKR-2 23454 | -2/Protoforge | Destroyed SKR-2 23464 | -2/Protoforge | Destroyed SKR-2 23467 | -2/Protoforge | Destroyed SKR-2 23487 | -2/Protoforge | Lost 5 allies 23497 | -2/Protoforge | Lost 3 parts (1p1u1w) 23557 | -2/Protoforge | UFD initiated attack on Protoforge (Readiness: Adequate) 23557 | -2/Protoforge | Loaded intel: 3 recycling unit locations 23590 | -2/Protoforge | Spotted EXE-6 23591 | -2/Protoforge | Spotted EXE-6 23593 | -2/Protoforge | Optimus greeted in Protoforge 23609 | -2/Protoforge | Initialized slip node 23629 | -2/Protoforge | Lost 6 allies 23630 | -2/Protoforge | Found Cep. XC Strikerail 23635 | -2/Protoforge | Found Exp. Armor Integrity Analyzer 23644 | -2/Protoforge | Found Exp. Kinecellerator 23668 | -2/Protoforge | P-80 Master assimilated allied 02F05-D 23707 | -2/Protoforge | Lost 6 allies 23709 | -2/Protoforge | Destroyed 9 combat bots 23740 | -2/Protoforge | Found Cep. Chromion Battery 23742 | -2/Protoforge | Found Cep. Chromion Battery 23768 | -2/Protoforge | Spotted Striker 23770 | -2/Protoforge | Spotted Striker 23788 | -2/Protoforge | Warped through subspace to slip node 23795 | -2/Protoforge | Spotted Hotshot 23801 | -2/Protoforge | Spotted Immortal 23807 | -2/Protoforge | Spotted Decapitator 23813 | -2/Protoforge | Spotted Hotshot 23819 | -2/Protoforge | Lost 9 parts (2p2n3u2w) 23819 | -2/Protoforge | Spotted Immortal 23822 | -2/Protoforge | Spotted Immortal 23825 | -2/Protoforge | Spotted Executioner 23837 | -2/Protoforge | Spotted Striker 23840 | -2/Protoforge | Spotted Striker 23843 | -2/Protoforge | Spotted Hotshot 23848 | -2/Protoforge | Spotted Executioner 23853 | -2/Protoforge | Spotted Executioner 23866 | -2/Protoforge | UFD reported confirmed Drillbomb installation 23867 | -2/Protoforge | Core integrity fell below 50% 23867 | -2/Protoforge | Spotted Executioner 23871 | -2/Protoforge | Spotted Striker 23873 | -2/Protoforge | Triborg destroyed during the operation 23873 | -2/Protoforge | Optimus emerged from Triborg 23876 | -2/Protoforge | Spotted Executioner 23878 | -2/Protoforge | Destroyed Executioner 23884 | -2/Protoforge | Spotted Striker 23886 | -2/Protoforge | YOLO Cannon suddenly exploded 23887 | -2/Protoforge | Core integrity fell below 20% 23890 | -2/Protoforge | Destroyed by Executioner with Helical Railgun Last Messages --------------- 23886_ Cep. Chromion Battery destroyed. 23886_ Centrium Leg+ destroyed. 23886_ Exp. Optical Array destroyed. 23886_ Exp. Core Analyzer destroyed. 23886_ Core damaged (-365). 23886_ X0-1V1 thinks this is hilarious! 23886_ Exp. VSS Leg destroyed. 23886_ X0-1V1 is mildly amused. 23886_ Destroyed Exp. VSS Leg. 23886_ Ovr. Huge Scrapsphere destroyed. 23886_ Destroyed Ovr. Huge Scrapsphere. 23886_ Ovr. Huge Scrapsphere destroyed. 23886_ Destroyed Ovr. Huge Scrapsphere. 23886_ Superfortress suffers critical hit (Destroy). 23887_ Superfortress assembles P-80 Master. 23887_ X0-1V1 is amused. 23889_ Lrg. Storage Unit destroyed. 23890_ Acquired 5 matter. 23890_ X0-1V1 giggles madly! Map ----- +----------------------------------------------------+ | "=%! " " "" "#???????????????????? | | %" ![" "" #???????????????????? | | ""[ " "" "" +???????????????????? | | % "" """ "" " +???????????????????? | | " "" """ #???????????????????? | | " ! """ "" "" " """ "#???????????????????? | | " %= "" "" "#???????????????????? | | " ""! "[ #???????????????????? | | " %"!![!"" " "#???????????????????? | | " =["" " "" #???????????????????? | | """ % % " " " " +???????????????????? | | """""" %& """ " +???????????????????? | | """"""" % " " " #???????????????????? | | """"""""%% "" "" "" "#???????????????????? | | """"""""" " "#???????????????????? | | """""""""" % " "#???????????????????? | | """"""""""" " " " "#???????????????????? | | """""""""""" % """ " "#???????????????????? | | """""""""""" %" """ " #???????????????????? | | """""""""""" " #???????????????????? | | """"""""""""" " #???????????????????? | | """"""""""""" #???????????????????? | | """"""""""""" % " #???????????????????? | | """"""""""""" 3% #???????????????????? | | """"""""""""" #???????????????????? | | """"""""""""" % %@ ##??????????????????? | | """"""""""""" ! #??????????????????? | | """"""""""""" !]! #??????????????????? | | """"""""""""" ##??????????????????? | | """""""""""" % #???????????????????? | | """""""""""" #???????????????????? | | """""""""""" = #???????????????????? | | """"""""""" !! % #???????????????????? | | """""""""" = #???????????????????? | | """"""""" !* [ ! #???????????????????? | | """""""" = = [[%[ *"" #???????????????????? | | """"""" *! [%! =!! #???????????????????? | | """""" "[%| ! [ %! * % #???????????????????? | | """ "=!! % % #???????????????????? | | "" "" #??### #????????????? | | % % ! #? #?????????????? | | " " &!! % # [[!##?????????????? | | """" """" % % "% =! #####?????????? | | "" """""""" % !!"% = #?????????? | | " ! % !!"%[= ##?????????? | | " "" !% [ [!%%=#= ###??????????? | | " =% [! !*%" % #????????????? | | """" ! %! ![!" #????????????? | | """ " % % ! * = [[ #????????????? | | # #????????????? | +----------------------------------------------------+ Best States ------------- Heat Dissipation 195 Energy Generation 88 Energy Capacity 2280 Matter Stores 800 Matter Capacity 800 Sight Range 23 Robot Scan Range 19 Terrain Scan Density 10 Jamming Range 16 Cloak Strength 3 Power Amplification 30 Base Temperature (-) 200 Armor Coverage 800 Resistance: KI 10 Resistance: EM 45 Weapon Shielding 90 Weapon Cycling 25 Phase Shifting 15 Evasion (%) 84 Target Analysis 8 Core Analysis 12 Armor Integrity Analysis 50 Recoil Reduction 6 Matter Filtering 50 Force Boost 40 Offensive Hacking 24 Defensive Hacking 20 Trap Extractor Capacity 8 Item Schematics ----------------- Assault Drone Bay | -4/Zhirov | Free Exp. Heat Sink | -4/Zhirov | Free Exp. Optical Array | -4/Zhirov | Free Imp. Arc Thrower | -4/Zhirov | Free Hvy. Neutron Cannon | -2/Testing | Archive Hvy. Tesla Rifle | -2/Testing | Archive Cld. Antigrav System | -2/Testing | Archive Electron Diverter | -2/Testing | Archive Quantum Shading Machine | -2/Testing | Archive Centrium Heavy Treads | -2/Testing | Archive Hds. Centrium Wheel | -2/Testing | Archive Point Singularity Launcher | -2/Testing | Archive Helical Railgun | -2/Testing | Archive Robot Schematics ------------------ T-07 Excavator | -2/Testing | Archive A-02 Transporter | -2/Testing | Archive Fabricated ------------ Nothing Repaired ---------- Nothing Studied --------- Med. Armored Exoskeleton | -3/Quarantine | Hacked Fusion Bomb Launcher | -3/Quarantine | Hacked Centrium Leg | -2/Testing | Hacked Hvy. Shield Leg | -2/Testing | Hacked Lgt. Quantum Reactor | -2/Testing | Hacked Particle Reactor | -2/Testing | Hacked Alien Tech Used ----------------- Integrated Dissipator Sigix Broadsword Subatomic Replicator Core Cannon Dimensional Node Initializer Supercharged TR Achievements -------------- None Challenges ------------ None Game ------ Seed PotentialSegregatorArchive Manual? 0 Play Time 03:19:37 Cumulative 992.7 hours Start 2026.07.11 @ 07:19:08 End 2026.07.12 @ 19:19:26 Sessions 12 Manual Loads 0 Difficulty Rogue Special Mode None Game No. 1130 Rogue 1130 Adventurer 0 Explorer 0 Win Type - Total 45 Types 22/1/9/3/2/1/3/2/1/1 Lore% 98 Gallery% 97 Achievement% 93 Wizard Run 0 Options --------- Layout 2 ASCII 0 Keyboard 0 Movement Mouse Keybinds 0 Fullscreen 2 Font 24/X11 Map View 50x49 Zoom Use 0% Tactical HUD 1 Map Filters NONE Filters NONE Steam 1 RUN: 0d6b0853-bee5-4fca-9e7c-fcce230bf59e